[Event "Titled Tuesday Blitz March 07 Early 2023"]
[White "Jakubowski, Krzysztof"]
[Black "Afanasieva, Alexandra"]
[WhiteFideId "1112848"]
[BlackFideId "34126926"]
[WhiteElo "2359"]
[BlackElo "1763"]
[Result "0-1"]
[Round "06"]
[TimeControl "180+2"]
[Date "2023.03.07"]
[WhiteClock "0:00:02"]
[BlackClock "0:00:09"]

1. e4 {[%clk 0:02:57]}  c5 {[%clk 0:02:59]} 2. Nf3 {[%clk 0:02:56]}  e6 {[%clk 0:02:59]} 3. d4 {[%clk 0:02:53]}  cxd4 {[%clk 0:02:59]} 4. Nxd4 {[%clk 0:02:53]}  Nf6 {[%clk 0:03:00]} 5. Nc3 {[%clk 0:02:53]}  Nc6 {[%clk 0:03:00]} 6. Ndb5 {[%clk 0:02:50]}  Bc5 {[%clk 0:03:00]} 7. Nd6+ {[%clk 0:02:46]}  Ke7 {[%clk 0:02:59]} 8. Bf4 {[%clk 0:02:45]}  e5 {[%clk 0:02:58]} 9. Nf5+ {[%clk 0:02:45]}  Kf8 {[%clk 0:02:59]} 10. Bg5 {[%clk 0:02:43]}  d6 {[%clk 0:02:45]} 11. Ne3 {[%clk 0:02:40]}  Be6 {[%clk 0:02:41]} 12. Qd2 {[%clk 0:02:29]}  h6 {[%clk 0:02:38]} 13. Bxf6 {[%clk 0:02:28]}  Qxf6 {[%clk 0:02:39]} 14. Ncd5 {[%clk 0:02:25]}  Qg6 {[%clk 0:02:23]} 15. Bd3 {[%clk 0:02:00]}  Rc8 {[%clk 0:02:18]} 16. O-O {[%clk 0:01:53]}  Nd4 {[%clk 0:02:13]} 17. Kh1 {[%clk 0:01:47]}  h5 {[%clk 0:02:10]} 18. b4 {[%clk 0:01:38]}  Bb6 {[%clk 0:02:00]} 19. c3 {[%clk 0:01:37]}  Nc6 {[%clk 0:01:58]} 20. Nc4 {[%clk 0:01:28]}  Ne7 {[%clk 0:01:34]} 21. Ncxb6 {[%clk 0:00:51]}  axb6 {[%clk 0:01:29]} 22. Nxb6 {[%clk 0:00:44]}  Rd8 {[%clk 0:01:23]} 23. f4 {[%clk 0:00:40]}  exf4 {[%clk 0:01:17]} 24. Qxf4 {[%clk 0:00:36]}  Nc6 {[%clk 0:01:02]} 25. a4 {[%clk 0:00:27]}  Ne5 {[%clk 0:01:02]} 26. Be2 {[%clk 0:00:27]}  h4 {[%clk 0:00:57]} 27. h3 {[%clk 0:00:27]}  Ke7 {[%clk 0:00:18]} 28. a5 {[%clk 0:00:25]}  Qg3 {[%clk 0:00:18]} 29. Qxg3 {[%clk 0:00:21]}  hxg3 {[%clk 0:00:19]} 30. Rfe1 {[%clk 0:00:16]}  Rh6 {[%clk 0:00:15]} 31. Kg1 {[%clk 0:00:15]}  Rdh8 {[%clk 0:00:15]} 32. Bf1 {[%clk 0:00:08]}  g5 {[%clk 0:00:15]} 33. a6 {[%clk 0:00:07]}  bxa6 {[%clk 0:00:14]} 34. Rxa6 {[%clk 0:00:08]}  g4 {[%clk 0:00:15]} 35. Ra7+ {[%clk 0:00:08]}  Kf6 {[%clk 0:00:15]} 36. Re3 {[%clk 0:00:07]}  gxh3 {[%clk 0:00:15]} 37. Rxg3 {[%clk 0:00:07]}  h2+ {[%clk 0:00:13]} 38. Kh1 {[%clk 0:00:07]}  Ng4 {[%clk 0:00:14]} 39. Rf3+ {[%clk 0:00:07]}  Kg7 {[%clk 0:00:10]} 40. Ra2 {[%clk 0:00:02]}  Rf6 {[%clk 0:00:09]} 0-1


[Site "https://www.chess.com"]

[Event "Titled Tuesday Blitz March 07 Early 2023"]
[White "Melikyan, Gnel"]
[Black "Yang,ching Wei, Austin"]
[WhiteFideId "54109990"]
[BlackFideId "16300440"]
[WhiteElo "2138"]
[BlackElo "2101"]
[Result "1-0"]
[Round "06"]
[TimeControl "180+2"]
[Date "2023.03.07"]
[WhiteClock "0:01:01"]
[BlackClock "0:00:13"]

1. Na3 {[%clk 0:02:54]}  e5 {[%clk 0:02:59]} 2. Nc4 {[%clk 0:02:55]}  Nc6 {[%clk 0:02:59]} 3. e4 {[%clk 0:02:54]}  Nf6 {[%clk 0:02:57]} 4. d3 {[%clk 0:02:54]}  Bc5 {[%clk 0:02:56]} 5. Nf3 {[%clk 0:02:54]}  d6 {[%clk 0:02:53]} 6. Be2 {[%clk 0:02:54]}  Be6 {[%clk 0:02:34]} 7. Ne3 {[%clk 0:02:54]}  h6 {[%clk 0:02:30]} 8. O-O {[%clk 0:02:53]}  Qe7 {[%clk 0:02:24]} 9. c3 {[%clk 0:02:53]}  Bb6 {[%clk 0:02:21]} 10. d4 {[%clk 0:02:51]}  exd4 {[%clk 0:02:19]} 11. cxd4 {[%clk 0:02:52]}  d5 {[%clk 0:02:18]} 12. e5 {[%clk 0:02:40]}  Ne4 {[%clk 0:02:17]} 13. Nc2 {[%clk 0:02:25]}  O-O-O {[%clk 0:02:10]} 14. Be3 {[%clk 0:02:22]}  g5 {[%clk 0:02:07]} 15. Nd2 {[%clk 0:02:22]}  Nxd2 {[%clk 0:01:56]} 16. Qxd2 {[%clk 0:02:20]}  Rdg8 {[%clk 0:01:56]} 17. b4 {[%clk 0:02:18]}  h5 {[%clk 0:01:52]} 18. a4 {[%clk 0:02:16]}  a5 {[%clk 0:01:50]} 19. b5 {[%clk 0:02:07]}  Nb8 {[%clk 0:01:43]} 20. Rfc1 {[%clk 0:02:06]}  g4 {[%clk 0:01:35]} 21. Ne1 {[%clk 0:02:05]}  h4 {[%clk 0:01:31]} 22. Bf4 {[%clk 0:01:56]}  Nd7 {[%clk 0:01:09]} 23. Ra2 {[%clk 0:01:37]}  Kb8 {[%clk 0:00:54]} 24. Rac2 {[%clk 0:01:35]}  Nf8 {[%clk 0:00:50]} 25. Nd3 {[%clk 0:01:34]}  Ng6 {[%clk 0:00:45]} 26. Bg5 {[%clk 0:01:33]}  Qd7 {[%clk 0:00:36]} 27. Nc5 {[%clk 0:01:32]}  Bxc5 {[%clk 0:00:36]} 28. Rxc5 {[%clk 0:01:32]}  Rc8 {[%clk 0:00:25]} 29. b6 {[%clk 0:01:16]}  cxb6 {[%clk 0:00:22]} 30. Bb5 {[%clk 0:01:16]}  Rxc5 {[%clk 0:00:17]} 31. dxc5 {[%clk 0:01:02]}  Qc7 {[%clk 0:00:14]} 32. cxb6 {[%clk 0:01:02]}  Qxb6 {[%clk 0:00:15]} 33. Be3 {[%clk 0:01:02]}  Qd8 {[%clk 0:00:14]} 34. Qd4 {[%clk 0:01:01]}  b6 {[%clk 0:00:13]} 35. Rc6 {[%clk 0:01:01]} 1-0


[Site "https://www.chess.com"]

[Event "Titled Tuesday Blitz March 07 Early 2023"]
[White "Jimenez Almeida, Luis David"]
[Black "Mohamed, Saeed Laily"]
[WhiteFideId "22242244"]
[BlackFideId "9314946"]
[WhiteElo "2245"]
[BlackElo "1767"]
[Result "1-0"]
[Round "06"]
[TimeControl "180+2"]
[Date "2023.03.07"]
[WhiteClock "0:00:14"]
[BlackClock "0:00:01"]

1. e4 {[%clk 0:03:00]}  c6 {[%clk 0:03:00]} 2. Nc3 {[%clk 0:03:00]}  d5 {[%clk 0:03:01]} 3. Qf3 {[%clk 0:03:00]}  dxe4 {[%clk 0:02:57]} 4. Nxe4 {[%clk 0:03:01]}  Nf6 {[%clk 0:02:58]} 5. Bc4 {[%clk 0:03:00]}  e6 {[%clk 0:02:52]} 6. Ne2 {[%clk 0:02:58]}  Nbd7 {[%clk 0:02:46]} 7. d4 {[%clk 0:02:56]}  Nxe4 {[%clk 0:02:44]} 8. Qxe4 {[%clk 0:02:57]}  Nf6 {[%clk 0:02:45]} 9. Qf3 {[%clk 0:02:57]}  Qc7 {[%clk 0:02:34]} 10. Bg5 {[%clk 0:02:50]}  Nd5 {[%clk 0:02:30]} 11. O-O-O {[%clk 0:02:44]}  b5 {[%clk 0:02:22]} 12. Bd3 {[%clk 0:02:39]}  Bd6 {[%clk 0:02:04]} 13. Kb1 {[%clk 0:02:36]}  Bd7 {[%clk 0:01:58]} 14. h4 {[%clk 0:02:33]}  c5 {[%clk 0:01:49]} 15. dxc5 {[%clk 0:02:27]}  Qxc5 {[%clk 0:01:44]} 16. Be4 {[%clk 0:02:23]}  Bc6 {[%clk 0:01:36]} 17. Rhe1 {[%clk 0:02:09]}  O-O {[%clk 0:01:27]} 18. g4 {[%clk 0:02:05]}  Qc4 {[%clk 0:01:02]} 19. Rd4 {[%clk 0:01:46]}  Qc5 {[%clk 0:00:55]} 20. Rdd1 {[%clk 0:01:35]}  Be5 {[%clk 0:00:43]} 21. Bc1 {[%clk 0:01:25]}  f5 {[%clk 0:00:40]} 22. gxf5 {[%clk 0:01:22]}  Rxf5 {[%clk 0:00:34]} 23. Qb3 {[%clk 0:00:56]}  Rff8 {[%clk 0:00:14]} 24. f4 {[%clk 0:00:48]}  Bf6 {[%clk 0:00:13]} 25. f5 {[%clk 0:00:48]}  Rad8 {[%clk 0:00:08]} 26. fxe6 {[%clk 0:00:47]}  Rfe8 {[%clk 0:00:09]} 27. Bf5 {[%clk 0:00:28]}  a5 {[%clk 0:00:08]} 28. Bg5 {[%clk 0:00:26]}  a4 {[%clk 0:00:07]} 29. Qd3 {[%clk 0:00:26]}  Nb4 {[%clk 0:00:05]} 30. Bxh7+ {[%clk 0:00:24]}  Kh8 {[%clk 0:00:05]} 31. Qg6 {[%clk 0:00:22]}  Qxc2+ {[%clk 0:00:02]} 32. Qxc2 {[%clk 0:00:21]}  Nxc2 {[%clk 0:00:03]} 33. Bxc2 {[%clk 0:00:21]}  Rxd1+ {[%clk 0:00:01]} 34. Rxd1 {[%clk 0:00:20]}  Bxg5 {[%clk 0:00:02]} 35. hxg5 {[%clk 0:00:20]}  Bf3 {[%clk 0:00:03]} 36. Rd2 {[%clk 0:00:14]}  Kg8 {[%clk 0:00:01]} 37. a3 {[%clk 0:00:14]}  g6 {[%clk 0:00:02]} 38. Nd4 {[%clk 0:00:14]}  Bd5 {[%clk 0:00:01]} 39. Bxg6 {[%clk 0:00:14]} 1-0


[Site "https://www.chess.com"]

[Event "Titled Tuesday Blitz March 07 Early 2023"]
[White "Yelisieiev, Yevhenii"]
[Black "Samarth, J Rao"]
[WhiteFideId "14139642"]
[BlackFideId "46652370"]
[WhiteElo "2447"]
[BlackElo "1564"]
[Result "1-0"]
[Round "06"]
[TimeControl "180+2"]
[Date "2023.03.07"]
[WhiteClock "0:00:12"]
[BlackClock "0:00:02"]

1. d4 {[%clk 0:03:00]}  d5 {[%clk 0:02:54]} 2. Nf3 {[%clk 0:03:01]}  Nf6 {[%clk 0:02:54]} 3. c4 {[%clk 0:03:02]}  e6 {[%clk 0:02:54]} 4. Nc3 {[%clk 0:03:02]}  c6 {[%clk 0:02:54]} 5. Bg5 {[%clk 0:03:01]}  h6 {[%clk 0:02:53]} 6. Bh4 {[%clk 0:03:01]}  dxc4 {[%clk 0:02:53]} 7. a4 {[%clk 0:02:55]}  Bb4 {[%clk 0:02:52]} 8. e3 {[%clk 0:02:40]}  g5 {[%clk 0:02:50]} 9. Bg3 {[%clk 0:02:36]}  b5 {[%clk 0:02:48]} 10. Qc2 {[%clk 0:02:30]}  Bb7 {[%clk 0:02:46]} 11. h4 {[%clk 0:02:29]}  g4 {[%clk 0:02:45]} 12. Ne5 {[%clk 0:02:28]}  Nbd7 {[%clk 0:02:44]} 13. Be2 {[%clk 0:02:26]}  h5 {[%clk 0:02:44]} 14. O-O {[%clk 0:02:24]}  Bxc3 {[%clk 0:02:26]} 15. bxc3 {[%clk 0:02:12]}  Nb6 {[%clk 0:01:50]} 16. Rfb1 {[%clk 0:02:02]}  Qd5 {[%clk 0:01:31]} 17. f3 {[%clk 0:01:30]}  Rg8 {[%clk 0:01:17]} 18. e4 {[%clk 0:01:22]}  Qd8 {[%clk 0:01:01]} 19. fxg4 {[%clk 0:01:20]}  Nxg4 {[%clk 0:00:50]} 20. Bxg4 {[%clk 0:01:10]}  hxg4 {[%clk 0:00:48]} 21. a5 {[%clk 0:01:05]}  f6 {[%clk 0:00:33]} 22. axb6 {[%clk 0:00:45]}  fxe5 {[%clk 0:00:33]} 23. Rxa7 {[%clk 0:00:37]}  Rxa7 {[%clk 0:00:15]} 24. bxa7 {[%clk 0:00:37]}  exd4 {[%clk 0:00:16]} 25. cxd4 {[%clk 0:00:30]}  Qxd4+ {[%clk 0:00:13]} 26. Bf2 {[%clk 0:00:30]}  Qd3 {[%clk 0:00:11]} 27. Qa2 {[%clk 0:00:25]}  Kd7 {[%clk 0:00:07]} 28. Re1 {[%clk 0:00:15]}  g3 {[%clk 0:00:06]} 29. Bc5 {[%clk 0:00:13]}  Kc8 {[%clk 0:00:03]} 30. a8=Q+ {[%clk 0:00:12]}  Bxa8 {[%clk 0:00:03]} 31. Qxa8+ {[%clk 0:00:13]}  Kd7 {[%clk 0:00:03]} 32. Qxg8 {[%clk 0:00:13]}  Qc3 {[%clk 0:00:02]} 33. Qf7+ {[%clk 0:00:12]}  Kd8 {[%clk 0:00:02]} 34. Rd1+ {[%clk 0:00:12]}  Kc8 {[%clk 0:00:02]} 35. Qd7+ {[%clk 0:00:11]}  Kb8 {[%clk 0:00:02]} 36. Qd8+ {[%clk 0:00:12]}  Kb7 {[%clk 0:00:03]} 37. Qb6+ {[%clk 0:00:11]}  Kc8 {[%clk 0:00:02]} 38. Rd8# {[%clk 0:00:12]} 1-0


[Site "https://www.chess.com"]

[Event "Titled Tuesday Blitz March 07 Early 2023"]
[White "Gonzalez, Francisco Silva"]
[Black "Mahdavi, Reza"]
[WhiteFideId "1512285"]
[BlackFideId "12595926"]
[WhiteElo "2074"]
[BlackElo "2208"]
[Result "0-1"]
[Round "06"]
[TimeControl "180+2"]
[Date "2023.03.07"]
[WhiteClock "0:00:41"]
[BlackClock "0:01:00"]

1. d4 {[%clk 0:02:52]}  Nf6 {[%clk 0:02:51]} 2. c4 {[%clk 0:02:51]}  g6 {[%clk 0:02:40]} 3. Nc3 {[%clk 0:02:51]}  Bg7 {[%clk 0:02:40]} 4. e4 {[%clk 0:02:51]}  d6 {[%clk 0:02:40]} 5. f3 {[%clk 0:02:51]}  O-O {[%clk 0:02:40]} 6. Be3 {[%clk 0:02:51]}  c5 {[%clk 0:02:21]} 7. Nge2 {[%clk 0:02:50]}  Nc6 {[%clk 0:02:16]} 8. d5 {[%clk 0:02:50]}  Ne5 {[%clk 0:02:15]} 9. Ng3 {[%clk 0:02:50]}  e6 {[%clk 0:02:14]} 10. Be2 {[%clk 0:02:51]}  exd5 {[%clk 0:02:13]} 11. cxd5 {[%clk 0:02:52]}  b5 {[%clk 0:02:12]} 12. Nxb5 {[%clk 0:02:50]}  Rb8 {[%clk 0:02:12]} 13. Qd2 {[%clk 0:02:48]}  h5 {[%clk 0:02:11]} 14. O-O {[%clk 0:02:47]}  h4 {[%clk 0:02:10]} 15. Nh1 {[%clk 0:02:47]}  h3 {[%clk 0:02:10]} 16. g4 {[%clk 0:02:46]}  Nxf3+ {[%clk 0:02:04]} 17. Rxf3 {[%clk 0:02:44]}  Nxe4 {[%clk 0:02:04]} 18. Qc2 {[%clk 0:02:38]}  Re8 {[%clk 0:02:04]} 19. Nxa7 {[%clk 0:02:34]}  Rxb2 {[%clk 0:01:59]} 20. Qd3 {[%clk 0:01:56]}  Bxg4 {[%clk 0:01:57]} 21. Nc6 {[%clk 0:01:54]}  Qd7 {[%clk 0:01:50]} 22. Raf1 {[%clk 0:01:53]}  Bxf3 {[%clk 0:01:48]} 23. Bxf3 {[%clk 0:01:53]}  c4 {[%clk 0:01:41]} 24. Qxc4 {[%clk 0:01:52]}  Nd2 {[%clk 0:01:40]} 25. Bxd2 {[%clk 0:01:50]}  Rxd2 {[%clk 0:01:41]} 26. Nf2 {[%clk 0:01:46]}  Qf5 {[%clk 0:01:40]} 27. Qg4 {[%clk 0:01:43]}  Qc2 {[%clk 0:01:35]} 28. Nxh3 {[%clk 0:01:40]}  Rxh2 {[%clk 0:01:33]} 29. Nf2 {[%clk 0:01:33]}  Rh5 {[%clk 0:01:30]} 30. Qg3 {[%clk 0:01:28]}  Rf5 {[%clk 0:01:24]} 31. Bg4 {[%clk 0:01:19]}  Rxd5 {[%clk 0:01:21]} 32. Bd7 {[%clk 0:01:17]}  Re2 {[%clk 0:01:13]} 33. Qh4 {[%clk 0:01:13]}  Rh5 {[%clk 0:01:08]} 34. Qd8+ {[%clk 0:01:12]}  Kh7 {[%clk 0:01:07]} 35. Ne7 {[%clk 0:01:11]}  Rg5+ {[%clk 0:01:05]} 36. Kh1 {[%clk 0:01:10]}  Rxf2 {[%clk 0:01:02]} 37. Qg8+ {[%clk 0:00:56]}  Kh6 {[%clk 0:01:02]} 38. Nf5+ {[%clk 0:00:49]}  gxf5 {[%clk 0:01:00]} 39. Qh8+ {[%clk 0:00:41]}  Bxh8 {[%clk 0:01:00]} 0-1


[Site "https://www.chess.com"]

[Event "Titled Tuesday Blitz March 07 Early 2023"]
[White "lisjakzlatko1"]
[Black "Nazari, Arad"]
[BlackFideId "12577324"]
[WhiteElo "2195"]
[BlackElo "2313"]
[Result "0-1"]
[Round "06"]
[TimeControl "180+2"]
[Date "2023.03.07"]
[WhiteClock "0:00:27"]
[BlackClock "0:00:21"]

1. d4 {[%clk 0:03:00]}  Nf6 {[%clk 0:02:59]} 2. Nc3 {[%clk 0:02:58]}  d5 {[%clk 0:02:59]} 3. Bf4 {[%clk 0:02:59]}  e6 {[%clk 0:02:56]} 4. e3 {[%clk 0:02:55]}  c5 {[%clk 0:02:55]} 5. Nb5 {[%clk 0:02:46]}  Na6 {[%clk 0:02:55]} 6. c3 {[%clk 0:02:41]}  Qb6 {[%clk 0:02:49]} 7. a4 {[%clk 0:02:39]}  Bd7 {[%clk 0:02:41]} 8. a5 {[%clk 0:02:37]}  Qc6 {[%clk 0:02:35]} 9. Nf3 {[%clk 0:02:33]}  c4 {[%clk 0:02:34]} 10. Na3 {[%clk 0:02:22]}  Bd6 {[%clk 0:02:32]} 11. Ne5 {[%clk 0:02:18]}  Qc7 {[%clk 0:02:31]} 12. Nc2 {[%clk 0:02:09]}  Nb8 {[%clk 0:02:24]} 13. Bg3 {[%clk 0:01:56]}  Nc6 {[%clk 0:02:22]} 14. Nxd7 {[%clk 0:01:52]}  Nxd7 {[%clk 0:02:18]} 15. Qg4 {[%clk 0:01:48]}  g6 {[%clk 0:02:14]} 16. a6 {[%clk 0:01:47]}  b5 {[%clk 0:02:02]} 17. Be2 {[%clk 0:01:43]}  h5 {[%clk 0:02:00]} 18. Qg5 {[%clk 0:01:29]}  Rd8 {[%clk 0:01:56]} 19. Na3 {[%clk 0:01:20]}  Rb8 {[%clk 0:01:40]} 20. e4 {[%clk 0:01:19]}  Bxg3 {[%clk 0:01:21]} 21. fxg3 {[%clk 0:01:15]}  b4 {[%clk 0:00:50]} 22. exd5 {[%clk 0:01:12]}  exd5 {[%clk 0:00:40]} 23. Qxd5 {[%clk 0:00:47]}  bxa3 {[%clk 0:00:37]} 24. Bxc4 {[%clk 0:00:48]}  O-O {[%clk 0:00:30]} 25. bxa3 {[%clk 0:00:43]}  Ne7 {[%clk 0:00:22]} 26. Qe4 {[%clk 0:00:27]}  Qxc4 {[%clk 0:00:21]} 0-1


[Site "https://www.chess.com"]

[Event "Titled Tuesday Blitz March 07 Early 2023"]
[White "Devaev, Alexander"]
[Black "Toropov, Pavel"]
[WhiteFideId "4169395"]
[BlackFideId "24129178"]
[WhiteElo "2225"]
[BlackElo "2182"]
[Result "1-0"]
[Round "06"]
[TimeControl "180+2"]
[Date "2023.03.07"]
[WhiteClock "0:00:18"]
[BlackClock "0:00:15"]

1. Nf3 {[%clk 0:03:00]}  d5 {[%clk 0:01:54]} 2. d4 {[%clk 0:02:58]}  Nf6 {[%clk 0:01:54]} 3. c4 {[%clk 0:02:59]}  c6 {[%clk 0:01:54]} 4. Qc2 {[%clk 0:02:58]}  g6 {[%clk 0:01:50]} 5. Bf4 {[%clk 0:02:59]}  Bg7 {[%clk 0:01:50]} 6. e3 {[%clk 0:02:59]}  O-O {[%clk 0:01:49]} 7. Bd3 {[%clk 0:02:59]}  a6 {[%clk 0:01:48]} 8. Nbd2 {[%clk 0:02:59]}  b5 {[%clk 0:01:38]} 9. b3 {[%clk 0:02:58]}  Nbd7 {[%clk 0:01:32]} 10. h3 {[%clk 0:02:58]}  Bb7 {[%clk 0:01:32]} 11. O-O {[%clk 0:02:57]}  e6 {[%clk 0:01:28]} 12. Bd6 {[%clk 0:02:41]}  Re8 {[%clk 0:01:27]} 13. c5 {[%clk 0:02:41]}  Bf8 {[%clk 0:01:25]} 14. Bxf8 {[%clk 0:02:40]}  Kxf8 {[%clk 0:01:24]} 15. Ne5 {[%clk 0:02:27]}  Nxe5 {[%clk 0:01:18]} 16. dxe5 {[%clk 0:02:28]}  Nd7 {[%clk 0:01:17]} 17. Qc3 {[%clk 0:02:28]}  Qe7 {[%clk 0:01:07]} 18. b4 {[%clk 0:02:23]}  a5 {[%clk 0:01:07]} 19. a3 {[%clk 0:02:23]}  f6 {[%clk 0:01:01]} 20. f4 {[%clk 0:02:03]}  fxe5 {[%clk 0:00:55]} 21. fxe5+ {[%clk 0:02:03]}  Kg8 {[%clk 0:00:55]} 22. e4 {[%clk 0:02:02]}  Rf8 {[%clk 0:00:51]} 23. Nf3 {[%clk 0:01:47]}  a4 {[%clk 0:00:39]} 24. Rae1 {[%clk 0:01:45]}  Rf7 {[%clk 0:00:38]} 25. exd5 {[%clk 0:01:42]}  cxd5 {[%clk 0:00:38]} 26. Bxb5 {[%clk 0:01:36]}  Nf8 {[%clk 0:00:38]} 27. Nd4 {[%clk 0:01:31]}  Rxf1+ {[%clk 0:00:36]} 28. Rxf1 {[%clk 0:01:31]}  Qc7 {[%clk 0:00:37]} 29. Qe3 {[%clk 0:01:14]}  Rd8 {[%clk 0:00:32]} 30. Rf6 {[%clk 0:01:04]}  Bc8 {[%clk 0:00:31]} 31. Bxa4 {[%clk 0:00:59]}  Bd7 {[%clk 0:00:29]} 32. Bxd7 {[%clk 0:00:52]}  Qxd7 {[%clk 0:00:30]} 33. c6 {[%clk 0:00:50]}  Qa7 {[%clk 0:00:30]} 34. b5 {[%clk 0:00:45]}  Rb8 {[%clk 0:00:28]} 35. Rf3 {[%clk 0:00:29]}  Ra8 {[%clk 0:00:21]} 36. Kh2 {[%clk 0:00:27]}  Qc7 {[%clk 0:00:18]} 37. Rxf8+ {[%clk 0:00:20]}  Rxf8 {[%clk 0:00:16]} 38. Nxe6 {[%clk 0:00:21]}  Qe7 {[%clk 0:00:15]} 39. Nxf8 {[%clk 0:00:20]}  Kxf8 {[%clk 0:00:15]} 40. b6 {[%clk 0:00:19]}  d4 {[%clk 0:00:16]} 41. Qxd4 {[%clk 0:00:18]}  Qxa3 {[%clk 0:00:16]} 42. Qd6+ {[%clk 0:00:18]}  Qxd6 {[%clk 0:00:15]} 43. exd6 {[%clk 0:00:18]} 1-0


[Site "https://www.chess.com"]

[Event "Titled Tuesday Blitz March 07 Early 2023"]
[White "Slade, Theodore"]
[Black "Rodchenkov, Sergey D."]
[WhiteFideId "426547"]
[BlackFideId "4168712"]
[WhiteElo "1964"]
[BlackElo "2277"]
[Result "1-0"]
[Round "06"]
[TimeControl "180+2"]
[Date "2023.03.07"]
[WhiteClock "0:01:09"]
[BlackClock "0:00:12"]

1. d4 {[%clk 0:03:00]}  d5 {[%clk 0:02:59]} 2. c4 {[%clk 0:03:00]}  dxc4 {[%clk 0:03:00]} 3. Nf3 {[%clk 0:02:59]}  Nf6 {[%clk 0:03:01]} 4. e3 {[%clk 0:03:00]}  e6 {[%clk 0:03:01]} 5. Bxc4 {[%clk 0:03:00]}  c5 {[%clk 0:03:02]} 6. O-O {[%clk 0:03:00]}  a6 {[%clk 0:03:03]} 7. dxc5 {[%clk 0:03:00]}  Bxc5 {[%clk 0:03:02]} 8. Qxd8+ {[%clk 0:03:00]}  Kxd8 {[%clk 0:03:03]} 9. Be2 {[%clk 0:02:47]}  Ke7 {[%clk 0:03:02]} 10. Nfd2 {[%clk 0:02:32]}  Nbd7 {[%clk 0:02:49]} 11. Bf3 {[%clk 0:02:31]}  g5 {[%clk 0:02:31]} 12. Nc3 {[%clk 0:02:12]}  g4 {[%clk 0:02:29]} 13. Be2 {[%clk 0:02:13]}  h5 {[%clk 0:02:10]} 14. b3 {[%clk 0:02:09]}  Bb4 {[%clk 0:01:33]} 15. Bb2 {[%clk 0:02:05]}  Rg8 {[%clk 0:01:17]} 16. Rac1 {[%clk 0:02:01]}  b5 {[%clk 0:00:57]} 17. a3 {[%clk 0:01:48]}  Ba5 {[%clk 0:00:55]} 18. b4 {[%clk 0:01:36]}  Bb6 {[%clk 0:00:51]} 19. a4 {[%clk 0:01:36]}  bxa4 {[%clk 0:00:36]} 20. Nxa4 {[%clk 0:01:36]}  Ba7 {[%clk 0:00:37]} 21. Rfd1 {[%clk 0:01:25]}  Bb7 {[%clk 0:00:33]} 22. Rc7 {[%clk 0:01:24]}  Bd5 {[%clk 0:00:28]} 23. e4 {[%clk 0:01:12]}  Ba2 {[%clk 0:00:12]} 24. Bxf6+ {[%clk 0:01:12]}  Kxf6 {[%clk 0:00:12]} 25. Rxd7 {[%clk 0:01:12]}  Rac8 {[%clk 0:00:12]} 26. Rxa7 {[%clk 0:01:09]} 1-0


[Site "https://www.chess.com"]